[Event "FIDE World Cup G12-A 2024"]
[Site "Batumi"]
[Date "2024.06.24"]
[Round "2.1"]
[White "Chichinadze, Anastasia"]
[Black "Qiu, Laurie"]
[Result "0-1"]
[ECO "C54"]
[WhiteElo "1724"]
[BlackElo "2068"]
[Annotator "NA RC"]
[PlyCount "84"]
[EventDate "2024.06.23"]
[EventType "swiss"]
[EventCountry "GEO"]
[SourceTitle "playchess.com"]
[Source "ChessBase"]
[SourceQuality "1"]
[TimeControl "5400+30"]

1. e4 {[%emt 0:00:03]} e5 {[%emt 0:00:06]} 2. Nf3 {[%emt 0:00:03]} Nc6 {[%emt 0:00:07]} 3. Bc4 {[%emt 0:00:05]} Bc5 {[%emt 0:00:29]} 4. c3 {[%emt 0:00:06]} Nf6 {[%emt 0:00:17]} 5. d3 {[%emt 0:00:06]} d6 {[%emt 0:00:28]} 6. O-O {[%emt 0:00:08]} h6 {[%emt 0:00:05]} 7. Nbd2 {[%emt 0:00:19]} O-O {[%emt 0:00:22]} 8. Re1 {[%emt 0:01:02]} a5 {[%emt 0:01:01]} 9. a4 {[%emt 0:05:46]} Be6 {[%emt 0:03:01]} 10. Bb3 {[%emt 0:06:25]} Re8 {[%emt 0:05:29]} 11. Bc2 {[%emt 0:09:47]} d5 {[%emt 0:06:46]} 12. Nb3 {[%emt 0:07:14]} Bb6 {[%emt 0:00:55]} 13. exd5 {[%emt 0:06:17]} Nxd5 {[%emt 0:06:52]} 14. d4 {[%emt 0:05:28]} exd4 {[%emt 0:14:12]} 15. Qd3 {[%emt 0:25:52]} (15. Nbxd4 $15 Nxd4 16. Nxd4) 15... Nf6 {[%emt 0:03:09]} 16. Nbxd4 $17 {[%emt 0:04:34]} Nxd4 {[%emt 0:05:04]} 17. cxd4 {[%emt 0:08:03]} Qd6 {[%emt 0:14:09]} 18. b3 {[%emt 0:07:09]} Rad8 {[%emt 0:04:07]} 19. Ba3 {[%emt 0:03:20]} Qd7 {[%emt 0:06:34]} 20. Bb2 {[%emt 0:02:03]} c5 {[%emt 0:27:17]} 21. Rad1 {[%emt 0:03:27]} cxd4 {[%emt 0:00:00]} 22. Bxd4 {[%emt 0:01:42]} Bxd4 {[%emt 0:00:00]} 23. Qxd4 {[%emt 0:01:18]} Qc7 {[%emt 0:00:00]} 24. Qb2 {[%emt 0:00:09]} Rxd1 {[%emt 0:00:00]} 25. Bxd1 {[%emt 0:00:43]} Rc8 {[%emt 0:00:00]} 26. Qe5 {[%emt 0:00:58]} Qxe5 {[%emt 0:00:00]} 27. Rxe5 {[%emt 0:00:50]} Rc1 {[%emt 0:00:00]} 28. Re1 {[%emt 0:00:28]} Ne4 {[%emt 0:00:00]} 29. Kf1 {[%emt 0:00:39]} Nc3 {[%emt 0:00:00]} 30. Be2 {[%emt 0:00:27]} Rxe1+ {[%emt 0:00:00]} 31. Kxe1 {[%emt 0:00:12]} Nxe2 {[%emt 0:00:00]} 32. Kxe2 {[%emt 0:00:04]} Bxb3 {[%emt 0:00:00]} 33. Nd4 {[%emt 0:00:10]} Bxa4 {[%emt 0:00:00]} 34. Kd3 {[%emt 0:00:04]} Bc6 {[%emt 0:00:00]} 35. g3 {[%emt 0:00:25]} g6 {[%emt 0:00:00]} 36. Kc4 {[%emt 0:00:16]} Kf8 {[%emt 0:00:00]} 37. Kb3 {[%emt 0:00:35]} Ke7 {[%emt 0:00:00]} 38. Ne2 {[%emt 0:00:20]} Kd6 {[%emt 0:00:00]} 39. Nf4 {[%emt 0:00:21]} Ke5 {[%emt 0:09:30]} 40. Ne2 {[%emt 0:01:29]} Ke4 {[%emt 0:00:00]} 41. Ng1 {[%emt 0:00:19]} Kd3 {[%emt 0:00:00]} 42. f4 {[%emt 0:00:11]} Ke3 {[%emt 0:00:00]} 0-1

[Event "FIDE World Cup G12-A 2024"]
[Site "Batumi"]
[Date "2024.06.24"]
[Round "2.2"]
[White "Lu, Xiahan (Luna)"]
[Black "Xikmatkhonova, Mokhinur"]
[Result "1/2-1/2"]
[ECO "B14"]
[WhiteElo "1859"]
[BlackElo "1706"]
[Annotator "NA RC"]
[PlyCount "127"]
[EventDate "2024.06.23"]
[EventType "swiss"]
[EventCountry "GEO"]
[SourceTitle "playchess.com"]
[Source "ChessBase"]
[SourceQuality "1"]
[TimeControl "5400+30"]

1. d4 {[%emt 1:31:00]} Nf6 {[%emt 0:00:08]} 2. c4 {[%emt 0:00:00]} e6 {[%emt 0:00:07]} 3. Nf3 {[%emt 0:00:00]} d5 {[%emt 0:00:19]} 4. Nc3 {[%emt 0:00:00]} Bb4 {[%emt 0:00:09]} 5. e3 {[%emt 0:00:00]} O-O {[%emt 0:01:04]} 6. Bd3 {[%emt 0:00:00]} c5 {[%emt 0:00:16]} 7. a3 {[%emt 0:00:00]} cxd4 {[%emt 0:06:57]} 8. exd4 {[%emt 0:00:00]} Bxc3+ {[%emt 0:02:10]} 9. bxc3 {[%emt 0:00:00]} dxc4 {[%emt 0:01:17]} 10. Bxc4 {[%emt 0:00:00]} Qc7 {[%emt 0:00:38]} 11. Qd3 {[%emt 0:00:00]} Nbd7 {[%emt 0:02:37] B14: Caro-Kann: Panov-Botvinnik Attack with 5...e6 and 5...g6.} 12. O-O {[%emt 0:00:00]} a6 {[%emt 0:02:34]} 13. Re1 {[%emt 0:00:00]} b5 {[%emt 0:08:16]} 14. Bb3 {[%emt 0:00:00]} Rd8 {[%emt 0:12:43]} 15. Qc2 {[%emt 0:00:00]} Bb7 {[%emt 0:03:05]} 16. Ne5 {[%emt 0:00:00]} Nxe5 {[%emt 0:22:53]} 17. dxe5 {[%emt 0:00:00]} Ne4 {[%emt 0:05:28]} 18. c4 {[%emt 0:00:00]} (18. Rxe4 $2 {too greedy.} Bxe4 19. Qb2 (19. Qxe4 $2 Qxc3 20. Rb1 Qxb3 $19) 19... Rd3 $19 (19... Qxe5 $2 20. Be3 $19)) 18... Qxe5 {[%emt 0:03:06]} 19. Bb2 {[%emt 0:00:00]} (19. Be3 $17) 19... Qf4 {[%emt 0:03:45]} 20. Rad1 $19 {[%emt 0:00:00]} (20. f3 {is a better defense.} Rac8 21. Rxe4 (21. fxe4 $2 {perishes.} Rd2 $19) 21... Bxe4 22. Qc3) 20... bxc4 {[%emt 0:07:00]} 21. Bxc4 {[%emt 0:00:00]} Rd2 {[%emt 0:06:11]} 22. Rxd2 {[%emt 0:00:00]} Qxd2 {[%emt 0:00:10]} 23. Qxd2 {[%emt 0:00:00]} Nxd2 {[%emt 0:00:02]} 24. Ba2 {[%emt 0:00:00]} Rd8 {[%emt 0:03:39]} 25. h3 {[%emt 0:00:00]} h6 {[%emt 0:01:24]} 26. Rc1 {[%emt 0:00:00]} Ne4 {[%emt 0:03:03]} 27. Rc2 {[%emt 0:00:00]} Rd1+ {[%emt 0:04:19]} 28. Kh2 {[%emt 0:00:00]} Rd2 {[%emt 0:00:17]} 29. Rxd2 {[%emt 0:00:00]} Nxd2 {[%emt 0:00:00]} 30. Bd4 {[%emt 0:00:00]} Ne4 {[%emt 0:00:57]} 31. Bc4 {[%emt 0:00:00]} g6 {[%emt 0:00:46]} 32. Bd3 {[%emt 0:00:00]} Nd6 {[%emt 0:00:31]} 33. g4 {[%emt 0:00:00]} Nb5 {[%emt 0:00:35]} 34. Bc5 {[%emt 0:00:00]} e5 {[%emt 0:00:27]} 35. Bxb5 {[%emt 0:00:00]} axb5 {[%emt 0:00:01]} 36. Kg3 {[%emt 0:00:00]} f6 {[%emt 0:01:00]} 37. h4 {[%emt 0:00:00]} h5 {[%emt 0:00:26]} 38. g5 {[%emt 0:00:00]} fxg5 {[%emt 0:00:34]} 39. hxg5 {[%emt 0:00:00]} Kf7 {[%emt 0:00:10]} 40. Be3 {[%emt 0:00:00]} Ke6 {[%emt 0:00:19]} 41. Kh4 {[%emt 0:00:00]} Kf5 {[%emt 0:00:34]} 42. Kg3 {[%emt 0:00:00]} Ke4 {[%emt 0:00:29]} 43. Bc5 {[%emt 0:00:00]} Kd5 {[%emt 0:00:17]} 44. Be3 {[%emt 0:00:00]} Kc4 {[%emt 0:00:34]} 45. Kh4 {[%emt 0:00:00]} Kc3 {[%emt 0:00:54]} 46. Bc5 {[%emt 0:00:00]} Kd3 {[%emt 0:00:26]} 47. Kg3 {[%emt 0:00:00]} Bd5 {[%emt 0:00:29]} 48. Bd6 {[%emt 0:00:00]} Kd4 {[%emt 0:00:22]} 49. Be7 {[%emt 0:00:00]} Ke4 {[%emt 0:00:17]} 50. Bc5 {[%emt 0:00:00]} Kf5 {[%emt 0:00:15]} 51. Be3 {[%emt 0:00:00]} Bc6 {[%emt 0:00:15]} 52. Kh4 {[%emt 0:00:00]} Ke4 {[%emt 0:00:27]} 53. Kg3 {[%emt 0:00:00]} Bd7 {[%emt 0:00:12]} 54. Bc5 {[%emt 0:00:00]} Kd5 {[%emt 0:00:20]} 55. Bb4 {[%emt 0:00:00]} Kd4 {[%emt 0:00:42]} 56. Be7 {[%emt 0:00:00]} e4 {[%emt 0:01:08]} 57. Bf6+ {[%emt 0:00:00]} Kd3 {[%emt 0:00:13]} 58. Be7 {[%emt 0:00:00]} Kc4 {[%emt 0:01:13]} 59. Bd6 {[%emt 0:00:00]} Bf5 {[%emt 0:00:20]} 60. Bb8 {[%emt 0:00:56]} Kb3 {[%emt 0:00:24]} 61. Bd6 {[%emt 0:00:07]} Kc4 {[%emt 0:00:06]} 62. Bb8 {[%emt 0:00:06]} Kd3 {[%emt 0:00:34]} 63. Ba7 {[%emt 0:00:05]} Kc4 {[%emt 0:00:18]} 64. Bb8 {[%emt 0:07:02]} 1/2-1/2

[Event "FIDE World Cup G12-A 2024"]
[Site "Batumi"]
[Date "2024.06.24"]
[Round "2.3"]
[White "Zavivaeva, Kristina"]
[Black "Kaminska, Zuzanna"]
[Result "1-0"]
[ECO "C55"]
[WhiteElo "1666"]
[BlackElo "1848"]
[Annotator "NA RC"]
[PlyCount "83"]
[EventDate "2024.06.23"]
[EventType "swiss"]
[EventCountry "GEO"]
[SourceTitle "playchess.com"]
[Source "ChessBase"]
[SourceQuality "1"]
[TimeControl "5400+30"]

1. e4 {[%emt 0:00:02]} e5 {[%emt 0:00:09]} 2. Nf3 {[%emt 0:00:07]} Nc6 {[%emt 0:00:16]} 3. Bc4 {[%emt 0:00:07]} Nf6 {[%emt 0:00:30]} 4. d3 {[%emt 0:00:14]} h6 {[%emt 0:00:17]} 5. c3 {[%emt 0:00:18]} d6 {[%emt 0:00:34]} 6. Nbd2 {[%emt 0:00:14]} g5 {[%emt 0:03:25] C55: Two Knights: 4 d3, 4 d4 exd4 5 e5 and Max Lange Attack.} 7. Bb3 {[%emt 0:00:33]} Bg7 {[%emt 0:00:54]} 8. Nf1 {[%emt 0:00:47]} d5 {[%emt 0:03:14]} 9. Qe2 {[%emt 0:02:06]} Be6 {[%emt 0:04:56]} 10. Ng3 {[%emt 0:01:59]} Qd7 {[%emt 0:03:17]} 11. exd5 {[%emt 0:01:43]} Nxd5 {[%emt 0:02:12]} 12. Nh5 {[%emt 0:00:23]} f6 {[%emt 0:02:25]} 13. d4 {[%emt 0:05:55]} g4 {[%emt 0:07:29]} 14. Nh4 {[%emt 0:04:11]} O-O-O {[%emt 0:02:21]} 15. O-O {[%emt 0:04:24]} Rhe8 {[%emt 0:06:23]} 16. dxe5 {[%emt 0:06:55]} Nxe5 {[%emt 0:02:25]} 17. Qc2 {[%emt 0:01:43]} Rg8 {[%emt 0:10:21]} 18. Bxd5 {[%emt 0:02:06]} Bxd5 {[%emt 0:06:00]} 19. Bf4 {[%emt 0:02:11]} Bc4 {[%emt 0:09:24]} 20. Rfd1 {[%emt 0:03:30]} Bd3 {[%emt 0:01:48]} 21. Qb3 {[%emt 0:00:37]} Qe8 $16 {[%emt 0:04:24]} (21... Kb8 $11) 22. Ng3 {[%emt 0:08:04]} Ng6 {[%emt 0:11:51]} 23. Nxg6 {[%emt 0:03:21]} Qxg6 {[%emt 0:02:02]} 24. Qe6+ {[%emt 0:02:10]} Kb8 {[%emt 0:00:22]} 25. Qe7 {[%emt 0:00:42]} Rc8 {[%emt 0:01:36]} 26. Rd2 {[%emt 0:02:20]} Rge8 {[%emt 0:01:38]} 27. Qd7 {[%emt 0:02:04]} Be4 {[%emt 0:03:59]} 28. Rad1 {[%emt 0:00:53]} a6 {[%emt 0:02:00]} 29. Nxe4 {[%emt 0:07:15]} Qxe4 {[%emt 0:01:16]} 30. Be3 {[%emt 0:00:38]} Qe7 {[%emt 0:02:39]} 31. Qxg4 {[%emt 0:00:17]} Rcd8 {[%emt 0:02:20]} 32. Rd7 {[%emt 0:01:09]} Qf8 {[%emt 0:02:11]} 33. Qg3 {[%emt 0:01:08]} Rxd7 {[%emt 0:01:05]} 34. Rxd7 {[%emt 0:00:07]} Qc5 {[%emt 0:00:35]} 35. Rxg7 {[%emt 0:00:55]} Rd8 {[%emt 0:01:02]} 36. h3 {[%emt 0:00:35]} Qc4 {[%emt 0:00:27]} 37. Kh2 {[%emt 0:00:29]} h5 {[%emt 0:00:13]} 38. Rxc7 {[%emt 0:02:44]} h4 {[%emt 0:00:55]} 39. Rxc4+ {[%emt 0:00:13]} hxg3+ {[%emt 0:00:06]} 40. fxg3 {[%emt 0:00:05]} Rd1 {[%emt 0:00:37]} 41. Bb6 {[%emt 0:00:16]} a5 {[%emt 0:00:20]} 42. Re4 {[%emt 0:00:12]} 1-0

[Event "FIDE World Cup G12-A 2024"]
[Site "Batumi"]
[Date "2024.06.24"]
[Round "2.4"]
[White "Mamakova, Aknur"]
[Black "Venskaya, Nika"]
[Result "1-0"]
[ECO "D91"]
[WhiteElo "1648"]
[BlackElo "1774"]
[Annotator "NA RC"]
[PlyCount "139"]
[EventDate "2024.06.23"]
[EventType "swiss"]
[EventCountry "GEO"]
[SourceTitle "playchess.com"]
[Source "ChessBase"]
[SourceQuality "1"]
[TimeControl "5400+30"]

1. d4 {[%emt 0:00:04]} Nf6 {[%emt 0:00:35]} 2. c4 {[%emt 0:00:20]} g6 {[%emt 0:00:22]} 3. Nc3 {[%emt 0:00:10]} d5 {[%emt 0:01:28]} 4. Nf3 {[%emt 0:00:28]} Bg7 {[%emt 0:00:05]} 5. Bg5 {[%emt 0:01:02]} Ne4 {[%emt 0:00:16]} 6. Bf4 {[%emt 0:01:53]} Nxc3 {[%emt 0:01:55]} 7. bxc3 {[%emt 0:00:08]} c6 {[%emt 0:02:42]} 8. e3 {[%emt 0:02:56]} O-O {[%emt 0:07:31]} 9. h3 {[%emt 0:06:16]} dxc4 {[%emt 0:05:11]} 10. Bxc4 {[%emt 0:01:56]} b5 {[%emt 0:00:23]} 11. Bd3 {[%emt 0:01:39]} Qb6 {[%emt 0:02:27]} 12. O-O {[%emt 0:02:43]} Nd7 {[%emt 0:02:25]} 13. Qe2 {[%emt 0:03:50]} Nf6 {[%emt 0:07:22]} 14. Bh2 {[%emt 0:04:34]} Bd7 {[%emt 0:08:43]} 15. Ne5 {[%emt 0:02:48]} a6 {[%emt 0:01:14]} 16. Rab1 {[%emt 0:03:53]} Qa5 {[%emt 0:06:40]} 17. Rfc1 {[%emt 0:02:46]} Rfc8 {[%emt 0:01:06]} 18. c4 {[%emt 0:02:54]} Be8 {[%emt 0:13:59]} 19. c5 {[%emt 0:11:14]} Nd7 {[%emt 0:06:28]} 20. Nxd7 {[%emt 0:02:04]} Bxd7 {[%emt 0:00:02]} 21. Be4 {[%emt 0:47:22]} f5 {[%emt 0:05:59]} 22. Bf3 {[%emt 0:00:00]} Be6 {[%emt 0:00:08]} 23. Rc2 {[%emt 0:00:00]} Qd8 {[%emt 0:02:00]} 24. Rd1 {[%emt 0:00:00]} Bd5 {[%emt 0:03:01]} 25. e4 {[%emt 0:00:00]} fxe4 {[%emt 0:01:16]} 26. Bxe4 {[%emt 0:00:00]} e6 {[%emt 0:04:34]} 27. Bf3 {[%emt 0:00:00]} Ra7 {[%emt 0:02:12]} 28. Bd6 {[%emt 0:00:00]} Qf6 {[%emt 0:04:07]} 29. Rc3 {[%emt 0:00:00]} Rf7 {[%emt 0:01:26]} 30. Ra3 {[%emt 0:00:00]} Ra8 {[%emt 0:01:47]} 31. Re3 {[%emt 0:03:04]} Bc4 {[%emt 0:00:36]} 32. Qe1 {[%emt 0:00:56]} Rc8 {[%emt 0:03:15]} 33. Bg4 {[%emt 0:00:45]} Re8 {[%emt 0:02:09]} 34. Bf3 {[%emt 0:01:01]} Rc8 {[%emt 0:00:54]} 35. Bg4 {[%emt 0:00:22]} Bxa2 {[%emt 0:02:16]} 36. Bxe6 {[%emt 0:00:40]} Bxe6 {[%emt 0:00:07]} 37. Rxe6 {[%emt 0:00:01]} Qf5 {[%emt 0:00:28]} 38. Rd2 {[%emt 0:00:48]} h5 {[%emt 0:00:56]} 39. f3 {[%emt 0:00:49]} a5 {[%emt 0:00:16]} 40. Re8+ {[%emt 0:00:26]} Kh7 {[%emt 0:00:19]} 41. Re7 {[%emt 0:00:34]} a4 {[%emt 0:00:40]} 42. Re3 {[%emt 0:00:33]} Bh6 {[%emt 0:00:32]} 43. f4 {[%emt 0:00:20]} Bg7 {[%emt 0:01:11]} 44. Rdd3 {[%emt 0:00:20]} Ra8 {[%emt 0:00:32]} 45. Be5 {[%emt 0:00:20]} Bh6 {[%emt 0:00:22]} 46. Qb4 {[%emt 0:00:45]} Qd7 {[%emt 0:00:42]} 47. Rf3 {[%emt 0:00:26]} Qd5 {[%emt 0:00:19]} 48. Ra3 {[%emt 0:00:29]} Bf8 {[%emt 0:00:29]} 49. Qc3 {[%emt 0:00:37]} Rb7 {[%emt 0:00:30]} 50. Qb4 {[%emt 0:00:22]} Qe4 {[%emt 0:00:36]} 51. g4 {[%emt 0:00:23]} Bg7 {[%emt 0:00:45]} 52. Rae3 {[%emt 0:00:29]} Qd5 {[%emt 0:00:19]} 53. gxh5 {[%emt 0:00:14]} gxh5 {[%emt 0:00:01]} 54. Qb1+ {[%emt 0:00:06]} Kh8 {[%emt 0:00:38]} 55. Qf5 {[%emt 0:00:44]} Qf7 {[%emt 0:00:09]} 56. Bxg7+ {[%emt 0:00:07]} Kxg7 {[%emt 0:00:41]} 57. Rg3+ {[%emt 0:00:04]} Kf8 {[%emt 0:00:18]} 58. Qe5 {[%emt 0:00:12]} Qh7 {[%emt 0:00:33]} 59. Qf6+ {[%emt 0:01:10]} Rf7 {[%emt 0:00:09]} 60. Qd6+ {[%emt 0:00:10]} Re7 {[%emt 0:00:06]} 61. f5 {[%emt 0:01:30]} Rae8 {[%emt 0:02:17]} 62. Rg6 {[%emt 0:01:05]} a3 {[%emt 0:00:24]} 63. Rxa3 {[%emt 0:00:20]} b4 {[%emt 0:00:28]} 64. Rag3 {[%emt 0:00:11]} b3 {[%emt 0:00:28]} 65. Rxb3 {[%emt 0:00:25]} Ra8 {[%emt 0:00:06]} 66. Re3 {[%emt 0:01:05]} Ra1+ {[%emt 0:00:21]} 67. Kf2 {[%emt 0:00:03]} Ra2+ {[%emt 0:00:40]} 68. Kf3 {[%emt 0:00:04]} Ke8 {[%emt 0:00:21]} 69. Rxe7+ {[%emt 0:00:13]} Qxe7 {[%emt 0:00:08]} 70. Rg8+ {[%emt 0:02:17]} 1-0

[Event "FIDE World Cup G12-A 2024"]
[Site "Batumi"]
[Date "2024.06.24"]
[Round "2.5"]
[White "Wu, Yiting"]
[Black "Mirzaliyeva, Leyla"]
[Result "0-1"]
[ECO "B94"]
[WhiteElo "1758"]
[BlackElo "1548"]
[Annotator "NA RC"]
[PlyCount "58"]
[EventDate "2024.06.23"]
[EventType "swiss"]
[EventCountry "GEO"]
[SourceTitle "playchess.com"]
[Source "ChessBase"]
[SourceQuality "1"]
[TimeControl "5400+30"]

1. e4 {[%emt 0:00:02]} c5 {[%emt 0:00:11]} 2. Nf3 {[%emt 0:00:07]} d6 {[%emt 0:00:09]} 3. d4 {[%emt 0:00:05]} cxd4 {[%emt 0:00:06]} 4. Nxd4 {[%emt 0:00:07]} Nf6 {[%emt 0:00:06]} 5. Nc3 {[%emt 0:00:08]} a6 {[%emt 0:00:10]} 6. Bg5 {[%emt 0:00:07]} Nbd7 {[%emt 0:00:15]} 7. Bc4 {[%emt 0:00:10]} Qb6 {[%emt 0:00:17]} 8. Bb3 {[%emt 0:00:15]} e6 {[%emt 0:00:34]} 9. Bxf6 {[%emt 0:00:20]} Nxf6 {[%emt 0:00:10]} 10. Qd2 {[%emt 0:00:11]} g6 {[%emt 0:00:41]} 11. O-O-O {[%emt 0:02:36]} Bg7 {[%emt 0:00:39]} 12. f4 {[%emt 0:04:34]} O-O {[%emt 0:06:41]} 13. Nf3 {[%emt 0:15:08]} Bh6 {[%emt 0:12:25]} 14. g3 {[%emt 0:07:42]} e5 {[%emt 0:21:53]} 15. Ng5 {[%emt 0:11:06]} Bg4 {[%emt 0:20:32]} 16. Qxd6 {[%emt 0:16:24]} Qe3+ {[%emt 0:03:33]} 17. Qd2 {[%emt 0:01:24]} Qc5 {[%emt 0:01:30]} 18. Rdf1 {[%emt 0:39:04]} Rad8 {[%emt 0:03:28]} 19. Bxf7+ {[%emt 0:00:00]} Kg7 {[%emt 0:01:26]} 20. Bd5 {[%emt 0:00:00]} exf4 {[%emt 0:02:49]} 21. gxf4 {[%emt 0:00:00]} b5 {[%emt 0:02:57]} 22. h3 {[%emt 0:00:00]} Bc8 {[%emt 0:02:50]} 23. Qe2 {[%emt 0:00:00]} Nh5 {[%emt 0:02:37]} 24. Qh2 {[%emt 0:00:00]} Nxf4 {[%emt 0:01:24]} 25. h4 {[%emt 0:00:00]} Qd6 {[%emt 0:02:22]} 26. Bb3 {[%emt 0:00:00]} Nd3+ {[%emt 0:02:15]} 27. cxd3 {[%emt 0:00:00]} Bxg5+ {[%emt 0:00:46]} 28. hxg5 {[%emt 0:00:00]} Rxf1+ {[%emt 0:00:07]} 29. Kc2 {[%emt 0:00:20]} Qxd3# {[%emt 0:00:10]} 0-1

[Event "FIDE World Cup G12-A 2024"]
[Site "Batumi"]
[Date "2024.06.24"]
[Round "2.6"]
[White "Muradova, Nebahat"]
[Black "Xue, Tianhao"]
[Result "0-1"]
[ECO "D93"]
[WhiteElo "1626"]
[BlackElo "1754"]
[Annotator "NA RC"]
[PlyCount "91"]
[EventDate "2024.06.23"]
[EventType "swiss"]
[EventCountry "GEO"]
[SourceTitle "playchess.com"]
[Source "ChessBase"]
[SourceQuality "1"]
[TimeControl "5400+30"]

1. d4 {[%emt 0:00:02]} Nf6 {[%emt 0:00:06]} 2. c4 {[%emt 0:00:06]} g6 {[%emt 0:00:06]} 3. Nc3 {[%emt 0:00:11]} d5 {[%emt 0:00:06]} 4. Nf3 {[%emt 0:00:08]} Bg7 {[%emt 0:00:07]} 5. Bf4 {[%emt 0:00:26]} c5 {[%emt 0:10:26]} 6. e3 {[%emt 0:01:51]} O-O {[%emt 0:00:19]} 7. dxc5 {[%emt 0:02:40]} Qa5 {[%emt 0:00:24]} 8. Qa4 {[%emt 0:06:17]} Qxc5 {[%emt 0:03:56]} 9. Be2 {[%emt 0:06:13]} Nc6 {[%emt 0:06:13]} 10. O-O {[%emt 0:03:40]} dxc4 {[%emt 0:04:53]} 11. Qxc4 {[%emt 0:03:30]} Qa5 {[%emt 0:05:50]} 12. a3 {[%emt 0:03:24]} Be6 {[%emt 0:04:15]} 13. Qb5 {[%emt 0:00:45]} Qxb5 {[%emt 0:06:58]} 14. Nxb5 {[%emt 0:01:11]} Nd5 {[%emt 0:00:56]} 15. Bg3 {[%emt 0:08:05]} Rac8 {[%emt 0:08:37]} 16. Nbd4 {[%emt 0:02:14]} Nxd4 {[%emt 0:00:52]} 17. exd4 {[%emt 0:02:21]} Rc2 {[%emt 0:00:32]} 18. Rfe1 {[%emt 0:02:58]} Rxb2 {[%emt 0:02:18]} 19. Bc4 {[%emt 0:01:26]} Rc8 {[%emt 0:04:44]} 20. Bxd5 {[%emt 0:00:49]} Bxd5 {[%emt 0:00:45]} 21. Rac1 {[%emt 0:03:12]} Rxc1 {[%emt 0:05:39]} 22. Rxc1 {[%emt 0:00:04]} Bc6 {[%emt 0:07:30]} 23. Ne5 {[%emt 0:00:37]} Bxe5 {[%emt 0:02:10]} 24. Bxe5 {[%emt 0:00:16]} f6 {[%emt 0:00:15]} 25. d5 {[%emt 0:00:48]} fxe5 {[%emt 0:00:19]} 26. dxc6 {[%emt 0:00:03]} bxc6 {[%emt 0:00:13]} 27. g3 {[%emt 0:00:18]} Rb6 {[%emt 0:25:31]} 28. Rc5 {[%emt 0:00:15]} e4 {[%emt 0:00:00]} 29. Re5 {[%emt 0:00:07]} Kf7 {[%emt 0:00:00]} 30. Rxe4 {[%emt 0:00:02]} c5 {[%emt 0:00:00]} 31. Kf1 {[%emt 0:00:52]} Rc6 {[%emt 0:00:00]} 32. Ke2 {[%emt 0:00:13]} Re6 {[%emt 0:00:00]} 33. Kd3 {[%emt 0:00:27]} Rxe4 {[%emt 0:00:00]} 34. Kxe4 {[%emt 0:00:04]} Ke6 {[%emt 0:00:00]} 35. f4 {[%emt 0:00:12]} Kd6 {[%emt 0:00:00]} 36. g4 {[%emt 0:00:27]} e6 {[%emt 0:00:00]} 37. h4 {[%emt 0:00:31]} h5 {[%emt 0:00:00]} 38. g5 {[%emt 0:00:26]} a6 {[%emt 0:00:00]} 39. a4 {[%emt 0:00:11]} a5 {[%emt 0:00:00]} 40. Ke3 {[%emt 0:00:08]} Kd5 {[%emt 0:00:00]} 41. Kd3 {[%emt 0:00:16]} c4+ {[%emt 0:00:00]} 42. Kc3 {[%emt 0:00:29]} Kc5 {[%emt 0:00:00]} 43. Kc2 {[%emt 0:00:30]} Kb4 {[%emt 0:00:00]} 44. Kb2 {[%emt 0:00:07]} Kxa4 {[%emt 0:00:00]} 45. Kc3 {[%emt 0:00:05]} Kb5 {[%emt 0:00:00]} 46. Kd4 {[%emt 0:54:33]} 0-1

[Event "FIDE World Cup G12-A 2024"]
[Site "Batumi"]
[Date "2024.06.24"]
[Round "2.7"]
[White "Diaskyzy, Daliya"]
[Black "Sevastsyanchuk, Anastasiya"]
[Result "1/2-1/2"]
[ECO "B12"]
[WhiteElo "1793"]
[BlackElo "1531"]
[Annotator "NA RC"]
[PlyCount "72"]
[EventDate "2024.06.23"]
[EventType "swiss"]
[EventCountry "GEO"]
[SourceTitle "playchess.com"]
[Source "ChessBase"]
[SourceQuality "1"]
[TimeControl "5400+30"]

1. e4 {[%emt 0:00:02]} c6 {[%emt 0:00:08]} 2. d4 {[%emt 0:00:05]} d5 {[%emt 0:00:08]} 3. e5 {[%emt 0:00:02]} Bf5 {[%emt 0:00:07]} 4. Nf3 {[%emt 0:00:05]} e6 {[%emt 0:00:08]} 5. Be2 {[%emt 0:00:03]} Ne7 {[%emt 0:00:07]} 6. O-O {[%emt 0:01:15]} Bg6 {[%emt 0:00:09]} 7. c4 {[%emt 0:01:42]} Nd7 {[%emt 0:03:52]} 8. Nc3 {[%emt 0:03:36]} Nf5 {[%emt 0:01:22]} 9. cxd5 {[%emt 0:06:00]} cxd5 {[%emt 0:00:20]} 10. h3 {[%emt 0:00:47]} Rc8 {[%emt 0:04:04]} 11. a4 {[%emt 0:09:20]} Bb4 {[%emt 0:01:34]} 12. Bd2 {[%emt 0:00:28]} a5 {[%emt 0:00:16]} 13. Nb5 {[%emt 0:01:31]} Bxd2 {[%emt 0:01:08]} 14. Qxd2 {[%emt 0:00:06]} O-O {[%emt 0:00:07]} 15. Rac1 {[%emt 0:00:41]} Qb6 {[%emt 0:08:12]} 16. Kh1 {[%emt 0:02:43]} Rc6 {[%emt 0:01:43]} 17. Rc3 {[%emt 0:03:25]} Rfc8 {[%emt 0:00:56]} 18. g4 {[%emt 0:07:56]} Ne7 {[%emt 0:00:07]} 19. Nd6 {[%emt 0:00:18]} Rxc3 {[%emt 0:06:01]} 20. bxc3 {[%emt 0:00:13]} Rb8 {[%emt 0:01:02]} 21. Bb5 {[%emt 0:01:53]} Qc7 {[%emt 0:00:26]} 22. Qf4 {[%emt 0:05:17]} Nc8 {[%emt 0:05:26]} 23. c4 {[%emt 0:22:48]} Nxd6 {[%emt 0:02:47]} 24. exd6 {[%emt 0:00:03]} Qd8 {[%emt 0:00:18]} 25. cxd5 {[%emt 0:01:51]} exd5 {[%emt 0:00:20]} 26. Ne5 {[%emt 0:00:52]} Nxe5 {[%emt 0:01:31]} 27. Qxe5 {[%emt 0:01:28]} Qh4 {[%emt 0:02:27]} 28. Kg2 {[%emt 0:00:22]} f5 {[%emt 0:07:36]} 29. Qxd5+ {[%emt 0:03:11]} Kh8 {[%emt 0:00:09]} 30. f3 {[%emt 0:04:40]} Rc8 {[%emt 0:00:21]} 31. Bc4 {[%emt 0:02:25]} f4 {[%emt 0:02:19]} 32. Rf2 {[%emt 0:10:11]} Bd3 {[%emt 0:04:36]} 33. Bxd3 {[%emt 0:09:57]} Rc1 {[%emt 0:00:17]} 34. Rf1 {[%emt 0:01:27]} Qg3+ {[%emt 0:00:14]} 35. Kh1 {[%emt 0:00:05]} Qxh3+ {[%emt 0:00:09]} 36. Kg1 {[%emt 0:00:10]} Qg3+ {[%emt 0:00:20]} 1/2-1/2

[Event "FIDE World Cup G12-A 2024"]
[Site "Batumi"]
[Date "2024.06.24"]
[Round "2.8"]
[White "Wang, April"]
[Black "Zavivaeva, Angelina"]
[Result "1-0"]
[ECO "D61"]
[WhiteElo "1622"]
[BlackElo "1489"]
[Annotator "NA RC"]
[PlyCount "41"]
[EventDate "2024.06.23"]
[EventType "swiss"]
[EventCountry "GEO"]
[SourceTitle "playchess.com"]
[Source "ChessBase"]
[SourceQuality "1"]
[TimeControl "5400+30"]

1. d4 {[%emt 0:02:25]} d5 {[%emt 0:00:04]} 2. c4 {[%emt 0:00:14]} c6 {[%emt 0:00:01]} 3. Nc3 {[%emt 0:00:10]} Nf6 {[%emt 0:00:07]} 4. Nf3 {[%emt 0:00:30]} e6 {[%emt 0:00:06]} 5. Bg5 {[%emt 0:00:18]} Be7 {[%emt 0:00:06]} 6. e3 {[%emt 0:00:51]} O-O {[%emt 0:00:05]} 7. Qc2 {[%emt 0:01:35]} Nbd7 {[%emt 0:00:44]} 8. a3 {[%emt 0:01:31]} dxc4 {[%emt 0:04:42]} 9. Bxc4 {[%emt 0:00:17]} b5 {[%emt 0:00:06]} 10. Ba2 {[%emt 0:01:00]} a5 {[%emt 0:00:52]} 11. Bb1 {[%emt 0:07:44]} Bb7 {[%emt 1:29:07]} 12. Ne5 {[%emt 0:03:31]} g6 {[%emt 0:00:00]} 13. Nxd7 {[%emt 0:04:40]} Qxd7 {[%emt 0:00:00]} 14. Bxf6 {[%emt 0:05:08]} Bxf6 {[%emt 0:00:00]} 15. Ne4 {[%emt 0:01:04]} Bg7 {[%emt 0:00:00]} 16. h4 {[%emt 0:02:30]} Qd5 {[%emt 0:00:00]} 17. h5 {[%emt 0:17:43]} e5 {[%emt 0:00:00]} 18. hxg6 {[%emt 0:05:35]} hxg6 {[%emt 0:00:00]} 19. Ba2 {[%emt 0:01:47]} Qd8 {[%emt 0:00:00]} 20. Nc5 {[%emt 0:01:17]} Bc8 {[%emt 0:00:00]} 21. Qxg6 {[%emt 0:00:35]} 1-0